[Event "Titled Tuesday Blitz November 08 Early 2022"]
[White "Besedes, Danilo"]
[Black "Sarkar, Justin"]
[WhiteFideId "946796"]
[BlackFideId "2010011"]
[WhiteElo "2352"]
[BlackElo "2239"]
[Result "1-0"]
[Round "03"]
[TimeControl "180+1"]
[Date "2022.11.09"]
[WhiteClock "0:00:05"]
[BlackClock "0:00:01"]

1. Nf3 {[%clk 0:03:00]}  d5 {[%clk 0:02:44]} 2. e3 {[%clk 0:02:57]}  e6 {[%clk 0:02:27]} 3. c4 {[%clk 0:02:51]}  b6 {[%clk 0:02:12]} 4. Nc3 {[%clk 0:02:46]}  Bb7 {[%clk 0:02:07]} 5. d4 {[%clk 0:02:41]}  Nf6 {[%clk 0:01:57]} 6. Bd2 {[%clk 0:02:31]}  Be7 {[%clk 0:01:54]} 7. Rc1 {[%clk 0:02:30]}  O-O {[%clk 0:01:50]} 8. cxd5 {[%clk 0:02:28]}  exd5 {[%clk 0:01:48]} 9. Bd3 {[%clk 0:01:45]}  c5 {[%clk 0:01:41]} 10. O-O {[%clk 0:01:39]}  Nc6 {[%clk 0:01:36]} 11. a3 {[%clk 0:01:39]}  c4 {[%clk 0:01:28]} 12. Bb1 {[%clk 0:01:38]}  Na5 {[%clk 0:01:19]} 13. Ne5 {[%clk 0:01:32]}  Nb3 {[%clk 0:01:10]} 14. Rc2 {[%clk 0:01:20]}  a6 {[%clk 0:00:56]} 15. f4 {[%clk 0:01:15]}  b5 {[%clk 0:00:50]} 16. Be1 {[%clk 0:01:15]}  Ne4 {[%clk 0:00:39]} 17. Nxe4 {[%clk 0:01:09]}  dxe4 {[%clk 0:00:40]} 18. Ng4 {[%clk 0:01:01]}  Bd5 {[%clk 0:00:34]} 19. Nf2 {[%clk 0:00:58]}  f5 {[%clk 0:00:32]} 20. g4 {[%clk 0:00:54]}  g6 {[%clk 0:00:30]} 21. Bc3 {[%clk 0:00:40]}  a5 {[%clk 0:00:28]} 22. Be1 {[%clk 0:00:38]}  b4 {[%clk 0:00:26]} 23. a4 {[%clk 0:00:34]}  Qd7 {[%clk 0:00:23]} 24. Kh1 {[%clk 0:00:34]}  Qxa4 {[%clk 0:00:20]} 25. Rg1 {[%clk 0:00:34]}  Kh8 {[%clk 0:00:18]} 26. Nh3 {[%clk 0:00:18]}  Qc6 {[%clk 0:00:16]} 27. Rcg2 {[%clk 0:00:18]}  a4 {[%clk 0:00:08]} 28. gxf5 {[%clk 0:00:17]}  Rxf5 {[%clk 0:00:07]} 29. Ng5 {[%clk 0:00:13]}  Bxg5 {[%clk 0:00:06]} 30. Rxg5 {[%clk 0:00:12]}  Rxg5 {[%clk 0:00:06]} 31. Rxg5 {[%clk 0:00:12]}  a3 {[%clk 0:00:06]} 32. bxa3 {[%clk 0:00:10]}  bxa3 {[%clk 0:00:06]} 33. Ba2 {[%clk 0:00:10]}  Rb8 {[%clk 0:00:05]} 34. Bc3 {[%clk 0:00:08]}  Qe6 {[%clk 0:00:03]} 35. Qe1 {[%clk 0:00:05]}  Rb7 {[%clk 0:00:02]} 36. Re5 {[%clk 0:00:05]}  Qf6 {[%clk 0:00:01]} 37. Qd1 {[%clk 0:00:05]} 1-0


[Site "https://www.chess.com"]

[Event "Titled Tuesday Blitz November 08 Early 2022"]
[White "Bortnyk, Olexandr"]
[Black "Stribuk, Artiom"]
[WhiteFideId "14120828"]
[BlackFideId "13515659"]
[WhiteElo "2723"]
[BlackElo "2371"]
[Result "1-0"]
[Round "03"]
[TimeControl "180+1"]
[Date "2022.11.08"]
[WhiteClock "0:00:19"]
[BlackClock "0:00:03"]

1. d4 {[%clk 0:03:00]}  Nf6 {[%clk 0:02:54]} 2. Bf4 {[%clk 0:03:00]}  g6 {[%clk 0:02:53]} 3. Nd2 {[%clk 0:02:56]}  d5 {[%clk 0:02:42]} 4. e3 {[%clk 0:02:55]}  Bg7 {[%clk 0:02:43]} 5. h4 {[%clk 0:02:52]}  c5 {[%clk 0:02:40]} 6. c3 {[%clk 0:02:49]}  Nc6 {[%clk 0:02:40]} 7. Be2 {[%clk 0:02:23]}  cxd4 {[%clk 0:01:55]} 8. exd4 {[%clk 0:02:22]}  O-O {[%clk 0:01:56]} 9. h5 {[%clk 0:02:21]}  Nd7 {[%clk 0:01:56]} 10. Ngf3 {[%clk 0:02:06]}  e5 {[%clk 0:01:53]} 11. dxe5 {[%clk 0:02:07]}  Ndxe5 {[%clk 0:01:53]} 12. hxg6 {[%clk 0:02:00]}  hxg6 {[%clk 0:01:51]} 13. O-O {[%clk 0:01:24]}  Re8 {[%clk 0:01:15]} 14. Nxe5 {[%clk 0:01:22]}  Nxe5 {[%clk 0:01:16]} 15. Nf3 {[%clk 0:01:22]}  Nxf3+ {[%clk 0:01:10]} 16. Bxf3 {[%clk 0:01:23]}  d4 {[%clk 0:01:11]} 17. Qa4 {[%clk 0:01:05]}  Bd7 {[%clk 0:01:05]} 18. Qb3 {[%clk 0:01:05]}  dxc3 {[%clk 0:01:03]} 19. bxc3 {[%clk 0:00:58]}  Rc8 {[%clk 0:00:59]} 20. Rad1 {[%clk 0:00:54]}  Qe7 {[%clk 0:00:35]} 21. Qxb7 {[%clk 0:00:44]}  Ba4 {[%clk 0:00:35]} 22. Qxe7 {[%clk 0:00:38]}  Rxe7 {[%clk 0:00:36]} 23. Rde1 {[%clk 0:00:34]}  Rxe1 {[%clk 0:00:28]} 24. Rxe1 {[%clk 0:00:35]}  Rxc3 {[%clk 0:00:27]} 25. Re7 {[%clk 0:00:34]}  Bc6 {[%clk 0:00:17]} 26. Bxc6 {[%clk 0:00:33]}  Rxc6 {[%clk 0:00:17]} 27. Rxa7 {[%clk 0:00:33]}  Bd4 {[%clk 0:00:18]} 28. Ra8+ {[%clk 0:00:31]}  Kg7 {[%clk 0:00:18]} 29. Be3 {[%clk 0:00:22]}  Bxe3 {[%clk 0:00:17]} 30. fxe3 {[%clk 0:00:23]}  Rc2 {[%clk 0:00:17]} 31. a4 {[%clk 0:00:22]}  f5 {[%clk 0:00:17]} 32. a5 {[%clk 0:00:22]}  Ra2 {[%clk 0:00:12]} 33. a6 {[%clk 0:00:22]}  Kh7 {[%clk 0:00:07]} 34. a7 {[%clk 0:00:22]}  Kg7 {[%clk 0:00:07]} 35. Kh2 {[%clk 0:00:20]}  Kh7 {[%clk 0:00:07]} 36. Kg3 {[%clk 0:00:20]}  Ra4 {[%clk 0:00:07]} 37. Kf3 {[%clk 0:00:20]}  Kg7 {[%clk 0:00:07]} 38. g4 {[%clk 0:00:17]}  Kh7 {[%clk 0:00:06]} 39. gxf5 {[%clk 0:00:16]}  gxf5 {[%clk 0:00:07]} 40. Ke2 {[%clk 0:00:17]}  Kg7 {[%clk 0:00:06]} 41. Kd3 {[%clk 0:00:17]}  Kh7 {[%clk 0:00:03]} 42. Kc3 {[%clk 0:00:18]}  Kg7 {[%clk 0:00:03]} 43. Kb2 {[%clk 0:00:18]}  Kh7 {[%clk 0:00:03]} 44. Kb3 {[%clk 0:00:19]}  Ra1 {[%clk 0:00:03]} 45. Kb4 {[%clk 0:00:19]}  Kg7 {[%clk 0:00:04]} 46. Kc5 {[%clk 0:00:20]}  Ra2 {[%clk 0:00:03]} 47. Kd6 {[%clk 0:00:19]}  Ra6+ {[%clk 0:00:03]} 48. Ke5 {[%clk 0:00:19]}  Ra5+ {[%clk 0:00:03]} 49. Ke6 {[%clk 0:00:20]}  Kh7 {[%clk 0:00:03]} 50. Kf6 {[%clk 0:00:20]}  Ra6+ {[%clk 0:00:01]} 51. Kxf5 {[%clk 0:00:20]}  Kg7 {[%clk 0:00:02]} 52. e4 {[%clk 0:00:20]}  Ra5+ {[%clk 0:00:03]} 53. e5 {[%clk 0:00:20]}  Ra1 {[%clk 0:00:04]} 54. e6 {[%clk 0:00:19]}  Rf1+ {[%clk 0:00:04]} 55. Kg4 {[%clk 0:00:19]}  Rg1+ {[%clk 0:00:04]} 56. Kf3 {[%clk 0:00:20]}  Ra1 {[%clk 0:00:03]} 57. e7 {[%clk 0:00:19]} 1-0


[Site "https://www.chess.com"]

[Event "Titled Tuesday Blitz November 08 Early 2022"]
[White "Brown, Andrew"]
[Black "Winterberg, Lukas"]
[WhiteFideId "3206513"]
[BlackFideId "24622702"]
[WhiteElo "2245"]
[BlackElo "2349"]
[Result "0-1"]
[Round "03"]
[TimeControl "180+1"]
[Date "2022.11.09"]
[WhiteClock "0:00:03"]
[BlackClock "0:00:59"]

1. d4 {[%clk 0:02:59]}  g6 {[%clk 0:02:59]} 2. c4 {[%clk 0:02:59]}  Bg7 {[%clk 0:03:00]} 3. Nc3 {[%clk 0:02:58]}  c5 {[%clk 0:03:00]} 4. dxc5 {[%clk 0:02:58]}  Bxc3+ {[%clk 0:03:01]} 5. bxc3 {[%clk 0:02:56]}  f5 {[%clk 0:02:57]} 6. h4 {[%clk 0:02:52]}  Nf6 {[%clk 0:02:56]} 7. h5 {[%clk 0:02:51]}  Rg8 {[%clk 0:02:56]} 8. hxg6 {[%clk 0:02:49]}  hxg6 {[%clk 0:02:57]} 9. Nf3 {[%clk 0:02:24]}  Qa5 {[%clk 0:02:49]} 10. Qb3 {[%clk 0:02:14]}  Na6 {[%clk 0:02:47]} 11. Be3 {[%clk 0:02:10]}  Nxc5 {[%clk 0:02:47]} 12. Qb4 {[%clk 0:02:08]}  Qxb4 {[%clk 0:02:47]} 13. cxb4 {[%clk 0:02:08]}  Nce4 {[%clk 0:02:28]} 14. O-O-O {[%clk 0:01:49]}  d6 {[%clk 0:02:20]} 15. Nd2 {[%clk 0:01:31]}  Be6 {[%clk 0:02:14]} 16. Nxe4 {[%clk 0:01:25]}  Nxe4 {[%clk 0:02:08]} 17. c5 {[%clk 0:01:10]}  dxc5 {[%clk 0:01:50]} 18. bxc5 {[%clk 0:01:01]}  Rc8 {[%clk 0:01:48]} 19. f3 {[%clk 0:00:45]}  Nxc5 {[%clk 0:01:47]} 20. Kb2 {[%clk 0:00:28]}  Na4+ {[%clk 0:01:24]} 21. Ka3 {[%clk 0:00:20]}  Rc3+ {[%clk 0:01:09]} 22. Kxa4 {[%clk 0:00:20]}  Rxe3 {[%clk 0:01:09]} 23. Rd2 {[%clk 0:00:09]}  Kf7 {[%clk 0:01:06]} 24. Rh7+ {[%clk 0:00:07]}  Kf6 {[%clk 0:01:06]} 25. Rh4 {[%clk 0:00:06]}  Rc8 {[%clk 0:01:06]} 26. Rb4 {[%clk 0:00:05]}  b6 {[%clk 0:01:04]} 27. Kb5 {[%clk 0:00:03]}  Ra3 {[%clk 0:00:59]} 0-1


[Site "https://www.chess.com"]

[Event "Titled Tuesday Blitz November 08 Early 2022"]
[White "Buscar, Michael"]
[Black "Mills, Morgen"]
[WhiteFideId "2603616"]
[BlackFideId "2013304"]
[WhiteElo "2010"]
[BlackElo "2269"]
[Result "0-1"]
[Round "03"]
[TimeControl "180+1"]
[Date "2022.11.09"]
[WhiteClock "0:00:05"]
[BlackClock "0:00:08"]

1. Nf3 {[%clk 0:02:51]}  b6 {[%clk 0:02:57]} 2. b3 {[%clk 0:02:44]}  Bb7 {[%clk 0:02:57]} 3. Bb2 {[%clk 0:02:45]}  Nf6 {[%clk 0:02:55]} 4. e3 {[%clk 0:02:44]}  g6 {[%clk 0:02:55]} 5. c4 {[%clk 0:02:42]}  Bg7 {[%clk 0:02:56]} 6. Be2 {[%clk 0:02:43]}  O-O {[%clk 0:02:56]} 7. O-O {[%clk 0:02:41]}  d6 {[%clk 0:02:57]} 8. d3 {[%clk 0:02:41]}  e5 {[%clk 0:02:57]} 9. Nbd2 {[%clk 0:02:40]}  Nbd7 {[%clk 0:02:58]} 10. a3 {[%clk 0:02:40]}  a5 {[%clk 0:02:56]} 11. Qc2 {[%clk 0:02:39]}  Qe7 {[%clk 0:02:55]} 12. Rfe1 {[%clk 0:02:38]}  Nh5 {[%clk 0:02:54]} 13. Nf1 {[%clk 0:02:38]}  f5 {[%clk 0:02:53]} 14. Rad1 {[%clk 0:02:34]}  h6 {[%clk 0:02:51]} 15. d4 {[%clk 0:02:34]}  e4 {[%clk 0:02:43]} 16. N3d2 {[%clk 0:02:34]}  Kh7 {[%clk 0:02:33]} 17. Bxh5 {[%clk 0:02:26]}  gxh5 {[%clk 0:02:34]} 18. d5 {[%clk 0:02:24]}  Bxb2 {[%clk 0:02:31]} 19. Qxb2 {[%clk 0:02:24]}  Rg8 {[%clk 0:02:30]} 20. f4 {[%clk 0:02:10]}  Rg6 {[%clk 0:02:15]} 21. b4 {[%clk 0:02:03]}  a4 {[%clk 0:02:09]} 22. Nb1 {[%clk 0:02:00]}  Rag8 {[%clk 0:02:07]} 23. Rd2 {[%clk 0:01:57]}  Ba6 {[%clk 0:02:06]} 24. Rc1 {[%clk 0:01:52]}  h4 {[%clk 0:02:00]} 25. Rcc2 {[%clk 0:01:46]}  h3 {[%clk 0:01:59]} 26. g3 {[%clk 0:01:42]}  h5 {[%clk 0:01:57]} 27. Kh1 {[%clk 0:01:24]}  h4 {[%clk 0:01:55]} 28. Qd4 {[%clk 0:01:13]}  Nf6 {[%clk 0:01:48]} 29. Nc3 {[%clk 0:01:08]}  Qg7 {[%clk 0:01:06]} 30. Ne2 {[%clk 0:00:51]}  Ng4 {[%clk 0:01:01]} 31. Qxg7+ {[%clk 0:00:41]}  R6xg7 {[%clk 0:00:55]} 32. Nd4 {[%clk 0:00:25]}  hxg3 {[%clk 0:00:54]} 33. hxg3 {[%clk 0:00:24]}  Bc8 {[%clk 0:00:34]} 34. Rh2 {[%clk 0:00:17]}  Nxh2 {[%clk 0:00:33]} 35. Kxh2 {[%clk 0:00:17]}  Kg6 {[%clk 0:00:33]} 36. Nb5 {[%clk 0:00:15]}  Ba6 {[%clk 0:00:32]} 37. Nd4 {[%clk 0:00:14]}  Rh8 {[%clk 0:00:29]} 38. Nd2 {[%clk 0:00:13]}  Kf6 {[%clk 0:00:28]} 39. Nf1 {[%clk 0:00:13]}  Bc8 {[%clk 0:00:27]} 40. b5 {[%clk 0:00:08]}  Bd7 {[%clk 0:00:26]} 41. Rf2 {[%clk 0:00:07]}  Be8 {[%clk 0:00:25]} 42. Nd2 {[%clk 0:00:07]}  Bh5 {[%clk 0:00:25]} 43. Nc2 {[%clk 0:00:07]}  Rhg8 {[%clk 0:00:24]} 44. Nf1 {[%clk 0:00:06]}  Bf3 {[%clk 0:00:23]} 45. Nd4 {[%clk 0:00:04]}  Bg2 {[%clk 0:00:23]} 46. Rxg2 {[%clk 0:00:04]}  hxg2 {[%clk 0:00:23]} 47. Kxg2 {[%clk 0:00:05]}  Rh7 {[%clk 0:00:23]} 48. Ne6 {[%clk 0:00:05]}  Rgh8 {[%clk 0:00:22]} 49. Ng5 {[%clk 0:00:04]}  Rh5 {[%clk 0:00:22]} 50. Ne6 {[%clk 0:00:04]}  R8h7 {[%clk 0:00:18]} 51. Nd4 {[%clk 0:00:04]}  Rh1 {[%clk 0:00:14]} 52. Ne6 {[%clk 0:00:03]}  Rxf1 {[%clk 0:00:14]} 53. Kxf1 {[%clk 0:00:03]}  Rh1+ {[%clk 0:00:14]} 54. Kg2 {[%clk 0:00:02]}  Rc1 {[%clk 0:00:15]} 55. Nxc7 {[%clk 0:00:03]}  Rxc4 {[%clk 0:00:15]} 56. Ne8+ {[%clk 0:00:03]}  Ke7 {[%clk 0:00:14]} 57. Ng7 {[%clk 0:00:02]}  Kf6 {[%clk 0:00:13]} 58. Ne8+ {[%clk 0:00:02]}  Ke7 {[%clk 0:00:14]} 59. Ng7 {[%clk 0:00:03]}  Kd7 {[%clk 0:00:11]} 60. Nxf5 {[%clk 0:00:03]}  Rc3 {[%clk 0:00:11]} 61. g4 {[%clk 0:00:03]}  Rxa3 {[%clk 0:00:11]} 62. g5 {[%clk 0:00:04]}  Rc3 {[%clk 0:00:09]} 63. g6 {[%clk 0:00:04]}  Rc8 {[%clk 0:00:09]} 64. Nh6 {[%clk 0:00:04]}  a3 {[%clk 0:00:09]} 65. g7 {[%clk 0:00:04]}  a2 {[%clk 0:00:09]} 66. g8=Q {[%clk 0:00:05]}  Rxg8+ {[%clk 0:00:08]} 67. Nxg8 {[%clk 0:00:06]}  a1=Q {[%clk 0:00:08]} 68. Kf2 {[%clk 0:00:05]}  Qg7 {[%clk 0:00:08]} 0-1


[Site "https://www.chess.com"]

[Event "Titled Tuesday Blitz November 08 Early 2022"]
[White "Butolo, Alexandru-Mircea"]
[Black "Broca Jimenez, Fernando"]
[WhiteFideId "1261649"]
[BlackFideId "5104742"]
[WhiteElo "1897"]
[BlackElo "2062"]
[Result "0-1"]
[Round "03"]
[TimeControl "180+1"]
[Date "2022.11.09"]
[WhiteClock "0:00:04"]
[BlackClock "0:00:21"]

1. d4 {[%clk 0:03:00]}  Nf6 {[%clk 0:02:58]} 2. Bf4 {[%clk 0:03:00]}  g6 {[%clk 0:02:56]} 3. Nc3 {[%clk 0:02:59]}  Bg7 {[%clk 0:02:57]} 4. e4 {[%clk 0:02:59]}  d6 {[%clk 0:02:57]} 5. Qd2 {[%clk 0:02:57]}  Nc6 {[%clk 0:02:48]} 6. O-O-O {[%clk 0:02:56]}  h5 {[%clk 0:02:42]} 7. f3 {[%clk 0:02:50]}  b6 {[%clk 0:02:37]} 8. Bb5 {[%clk 0:02:49]}  Bd7 {[%clk 0:02:32]} 9. e5 {[%clk 0:02:47]}  Ng8 {[%clk 0:02:25]} 10. exd6 {[%clk 0:02:36]}  cxd6 {[%clk 0:02:11]} 11. Nge2 {[%clk 0:02:33]}  Nf6 {[%clk 0:02:01]} 12. Rhe1 {[%clk 0:02:31]}  O-O {[%clk 0:02:01]} 13. d5 {[%clk 0:02:24]}  Na5 {[%clk 0:01:56]} 14. Bxd7 {[%clk 0:02:17]}  Qxd7 {[%clk 0:01:57]} 15. Nd4 {[%clk 0:02:09]}  Rac8 {[%clk 0:01:50]} 16. Qe2 {[%clk 0:01:59]}  Rfe8 {[%clk 0:01:49]} 17. g4 {[%clk 0:01:27]}  hxg4 {[%clk 0:01:39]} 18. fxg4 {[%clk 0:01:27]}  Qxg4 {[%clk 0:01:38]} 19. Qxg4 {[%clk 0:01:26]}  Nxg4 {[%clk 0:01:39]} 20. b4 {[%clk 0:01:24]}  Rxc3 {[%clk 0:01:21]} 21. bxa5 {[%clk 0:01:23]}  bxa5 {[%clk 0:01:10]} 22. Nc6 {[%clk 0:01:22]}  Kf8 {[%clk 0:00:55]} 23. Nxa7 {[%clk 0:00:45]}  Nf6 {[%clk 0:00:54]} 24. Nb5 {[%clk 0:00:34]}  Rc5 {[%clk 0:00:50]} 25. Nxd6 {[%clk 0:00:33]}  Ra8 {[%clk 0:00:32]} 26. c4 {[%clk 0:00:14]}  Nh5 {[%clk 0:00:26]} 27. Bg5 {[%clk 0:00:03]}  exd6 {[%clk 0:00:21]} 28. Be7+ {[%clk 0:00:03]}  Kg8 {[%clk 0:00:21]} 29. Bxd6 {[%clk 0:00:04]}  Rxc4+ {[%clk 0:00:21]} 0-1


[Site "https://www.chess.com"]

[Event "Titled Tuesday Blitz November 08 Early 2022"]
[White "Cella, Glaucio Dalla Cortt"]
[Black "Ciuffoletti, Paolo"]
[WhiteFideId "2119455"]
[BlackFideId "807630"]
[WhiteElo "2011"]
[BlackElo "2143"]
[Result "0-1"]
[Round "03"]
[TimeControl "180+1"]
[Date "2022.11.09"]
[WhiteClock "0:00:09"]
[BlackClock "0:00:34"]

1. e4 {[%clk 0:01:56]}  c5 {[%clk 0:02:47]} 2. Nf3 {[%clk 0:01:55]}  Nc6 {[%clk 0:02:47]} 3. c3 {[%clk 0:01:54]}  d5 {[%clk 0:02:47]} 4. exd5 {[%clk 0:01:54]}  Qxd5 {[%clk 0:02:47]} 5. Na3 {[%clk 0:01:55]}  Nf6 {[%clk 0:02:44]} 6. d4 {[%clk 0:01:47]}  cxd4 {[%clk 0:02:43]} 7. Nb5 {[%clk 0:01:47]}  Qd8 {[%clk 0:02:41]} 8. Bf4 {[%clk 0:01:34]}  Nd5 {[%clk 0:02:36]} 9. Bg3 {[%clk 0:01:34]}  a6 {[%clk 0:02:30]} 10. Nbxd4 {[%clk 0:01:24]}  Bd7 {[%clk 0:02:01]} 11. Bd3 {[%clk 0:01:20]}  g6 {[%clk 0:01:45]} 12. O-O {[%clk 0:01:13]}  Bg7 {[%clk 0:01:45]} 13. Be4 {[%clk 0:01:05]}  Nf6 {[%clk 0:01:35]} 14. Bxc6 {[%clk 0:01:01]}  bxc6 {[%clk 0:01:29]} 15. Ne5 {[%clk 0:00:58]}  O-O {[%clk 0:01:16]} 16. Ndxc6 {[%clk 0:00:45]}  Qe8 {[%clk 0:01:13]} 17. Nxd7 {[%clk 0:00:44]}  Nxd7 {[%clk 0:01:04]} 18. Re1 {[%clk 0:00:45]}  e6 {[%clk 0:01:04]} 19. Bd6 {[%clk 0:00:41]}  Nf6 {[%clk 0:01:02]} 20. Bxf8 {[%clk 0:00:31]}  Bxf8 {[%clk 0:00:53]} 21. Ne5 {[%clk 0:00:32]}  Rd8 {[%clk 0:00:52]} 22. Qe2 {[%clk 0:00:29]}  Bd6 {[%clk 0:00:51]} 23. Rad1 {[%clk 0:00:27]}  Nd5 {[%clk 0:00:50]} 24. Qxa6 {[%clk 0:00:18]}  Nc7 {[%clk 0:00:43]} 25. Qe2 {[%clk 0:00:17]}  Qa4 {[%clk 0:00:42]} 26. b3 {[%clk 0:00:16]}  Qf4 {[%clk 0:00:41]} 27. g3 {[%clk 0:00:14]}  Qf5 {[%clk 0:00:41]} 28. f4 {[%clk 0:00:13]}  Nd5 {[%clk 0:00:40]} 29. Nc4 {[%clk 0:00:13]}  Bc5+ {[%clk 0:00:39]} 30. Kg2 {[%clk 0:00:13]}  Ra8 {[%clk 0:00:37]} 31. Qd3 {[%clk 0:00:08]}  Rxa2+ {[%clk 0:00:36]} 32. Kf3 {[%clk 0:00:09]}  Qh5+ {[%clk 0:00:36]} 33. Ke4 {[%clk 0:00:09]}  Nf6# {[%clk 0:00:34]} 0-1


[Site "https://www.chess.com"]

[Event "Titled Tuesday Blitz November 08 Early 2022"]
[White "Csonka, Balazs"]
[Black "Jegorovas, Aleksandras"]
[WhiteFideId "742910"]
[BlackFideId "12801950"]
[WhiteElo "2404"]
[BlackElo "2247"]
[Result "1-0"]
[Round "03"]
[TimeControl "180+1"]
[Date "2022.11.09"]
[WhiteClock "0:00:11"]
[BlackClock "0:00:03"]

1. d4 {[%clk 0:03:00]}  d5 {[%clk 0:02:57]} 2. c4 {[%clk 0:02:57]}  c6 {[%clk 0:02:56]} 3. Nf3 {[%clk 0:02:55]}  Nf6 {[%clk 0:02:56]} 4. Qc2 {[%clk 0:02:49]}  e6 {[%clk 0:02:55]} 5. Nbd2 {[%clk 0:02:43]}  Nbd7 {[%clk 0:02:54]} 6. g3 {[%clk 0:02:36]}  Be7 {[%clk 0:02:51]} 7. Bg2 {[%clk 0:02:35]}  O-O {[%clk 0:02:51]} 8. O-O {[%clk 0:02:35]}  b6 {[%clk 0:02:51]} 9. e4 {[%clk 0:02:34]}  Ba6 {[%clk 0:02:50]} 10. b3 {[%clk 0:02:30]}  Rc8 {[%clk 0:02:50]} 11. Rd1 {[%clk 0:02:18]}  Qc7 {[%clk 0:02:17]} 12. Bb2 {[%clk 0:02:09]}  c5 {[%clk 0:02:01]} 13. e5 {[%clk 0:01:44]}  Ne8 {[%clk 0:01:53]} 14. cxd5 {[%clk 0:01:42]}  exd5 {[%clk 0:01:51]} 15. Rac1 {[%clk 0:01:23]}  Qb8 {[%clk 0:01:48]} 16. Qf5 {[%clk 0:01:17]}  Rc7 {[%clk 0:01:40]} 17. e6 {[%clk 0:01:08]}  g6 {[%clk 0:01:37]} 18. Qh3 {[%clk 0:00:56]}  Ndf6 {[%clk 0:01:25]} 19. Ne5 {[%clk 0:00:41]}  fxe6 {[%clk 0:00:53]} 20. Qxe6+ {[%clk 0:00:37]}  Kg7 {[%clk 0:00:54]} 21. Nc6 {[%clk 0:00:25]}  Qb7 {[%clk 0:00:19]} 22. Nxe7 {[%clk 0:00:22]}  Rxe7 {[%clk 0:00:19]} 23. Qh3 {[%clk 0:00:22]}  Qc6 {[%clk 0:00:08]} 24. dxc5 {[%clk 0:00:21]}  bxc5 {[%clk 0:00:08]} 25. Nc4 {[%clk 0:00:19]}  Bc8 {[%clk 0:00:08]} 26. Qh4 {[%clk 0:00:19]}  Qa6 {[%clk 0:00:05]} 27. Bxd5 {[%clk 0:00:16]}  Qxa2 {[%clk 0:00:03]} 28. Bc6 {[%clk 0:00:11]} 1-0


[Site "https://www.chess.com"]

[Event "Titled Tuesday Blitz November 08 Early 2022"]
[White "Dahlgren, James Allen"]
[Black "Bilan, Danila"]
[WhiteFideId "22256873"]
[BlackFideId "24161918"]
[WhiteElo "2196"]
[BlackElo "2173"]
[Result "1-0"]
[Round "03"]
[TimeControl "180+1"]
[Date "2022.11.09"]
[WhiteClock "0:00:11"]
[BlackClock "0:00:01"]

1. e4 {[%clk 0:02:59]}  c6 {[%clk 0:02:58]} 2. Nc3 {[%clk 0:02:59]}  d5 {[%clk 0:02:57]} 3. d4 {[%clk 0:02:59]}  dxe4 {[%clk 0:02:57]} 4. Nxe4 {[%clk 0:02:59]}  Bf5 {[%clk 0:02:58]} 5. Ng3 {[%clk 0:02:57]}  Bg6 {[%clk 0:02:57]} 6. Nf3 {[%clk 0:02:56]}  Nd7 {[%clk 0:02:56]} 7. h4 {[%clk 0:02:57]}  h6 {[%clk 0:02:55]} 8. h5 {[%clk 0:02:56]}  Bh7 {[%clk 0:02:55]} 9. Bd3 {[%clk 0:02:53]}  Bxd3 {[%clk 0:02:55]} 10. Qxd3 {[%clk 0:02:54]}  Qc7 {[%clk 0:02:56]} 11. c4 {[%clk 0:02:44]}  e6 {[%clk 0:02:55]} 12. Be3 {[%clk 0:02:38]}  Ngf6 {[%clk 0:02:52]} 13. O-O-O {[%clk 0:02:37]}  Bd6 {[%clk 0:02:51]} 14. Ne4 {[%clk 0:02:34]}  Bf4 {[%clk 0:02:35]} 15. g3 {[%clk 0:02:09]}  Bxe3+ {[%clk 0:02:31]} 16. Qxe3 {[%clk 0:02:09]}  O-O {[%clk 0:02:07]} 17. Ne5 {[%clk 0:01:43]}  Nxe5 {[%clk 0:01:46]} 18. Nxf6+ {[%clk 0:01:34]}  gxf6 {[%clk 0:01:44]} 19. dxe5 {[%clk 0:01:26]}  Qxe5 {[%clk 0:01:43]} 20. Qxh6 {[%clk 0:01:23]}  Rad8 {[%clk 0:01:31]} 21. f4 {[%clk 0:01:08]}  Qe3+ {[%clk 0:01:09]} 22. Kb1 {[%clk 0:01:02]}  Qe4+ {[%clk 0:01:03]} 23. Ka1 {[%clk 0:00:55]}  Rxd1+ {[%clk 0:00:54]} 24. Rxd1 {[%clk 0:00:55]}  Qc2 {[%clk 0:00:36]} 25. Rb1 {[%clk 0:00:52]}  Rd8 {[%clk 0:00:35]} 26. a3 {[%clk 0:00:31]}  Qf5 {[%clk 0:00:14]} 27. Rg1 {[%clk 0:00:19]}  Rd2 {[%clk 0:00:10]} 28. g4 {[%clk 0:00:17]}  Qc2 {[%clk 0:00:03]} 29. Qxf6 {[%clk 0:00:16]}  Qxc4 {[%clk 0:00:03]} 30. h6 {[%clk 0:00:13]}  Qd4 {[%clk 0:00:02]} 31. h7+ {[%clk 0:00:10]}  Kxh7 {[%clk 0:00:01]} 32. Rh1+ {[%clk 0:00:11]}  Kg8 {[%clk 0:00:01]} 33. Rh8# {[%clk 0:00:11]} 1-0


[Site "https://www.chess.com"]

[Event "Titled Tuesday Blitz November 08 Early 2022"]
[White "Dardha, Daniel"]
[Black "Firouzja, Alireza"]
[WhiteFideId "240990"]
[BlackFideId "12573981"]
[WhiteElo "2528"]
[BlackElo "2903"]
[Result "0-1"]
[Round "03"]
[TimeControl "180+1"]
[Date "2022.11.08"]
[WhiteClock "0:00:01"]
[BlackClock "0:00:09"]

1. e4 {[%clk 0:03:00]}  c5 {[%clk 0:02:55]} 2. Nf3 {[%clk 0:03:00]}  d6 {[%clk 0:02:56]} 3. d4 {[%clk 0:03:01]}  cxd4 {[%clk 0:02:56]} 4. Nxd4 {[%clk 0:03:02]}  Nf6 {[%clk 0:02:57]} 5. Nc3 {[%clk 0:03:02]}  Nc6 {[%clk 0:02:58]} 6. Bg5 {[%clk 0:03:02]}  Bd7 {[%clk 0:02:58]} 7. Qd2 {[%clk 0:03:01]}  Rc8 {[%clk 0:02:58]} 8. O-O-O {[%clk 0:02:57]}  Nxd4 {[%clk 0:02:58]} 9. Qxd4 {[%clk 0:02:57]}  Qa5 {[%clk 0:02:59]} 10. h4 {[%clk 0:02:49]}  h6 {[%clk 0:02:45]} 11. Bd2 {[%clk 0:02:45]}  e5 {[%clk 0:02:44]} 12. Qd3 {[%clk 0:02:43]}  b5 {[%clk 0:02:32]} 13. Kb1 {[%clk 0:02:40]}  b4 {[%clk 0:02:17]} 14. Nb5 {[%clk 0:02:26]}  d5 {[%clk 0:01:58]} 15. exd5 {[%clk 0:02:12]}  a6 {[%clk 0:01:58]} 16. Na7 {[%clk 0:02:05]}  e4 {[%clk 0:01:21]} 17. Re1 {[%clk 0:01:23]}  Rc7 {[%clk 0:00:40]} 18. Rxe4+ {[%clk 0:01:09]}  Nxe4 {[%clk 0:00:40]} 19. Qxe4+ {[%clk 0:01:10]}  Be7 {[%clk 0:00:40]} 20. d6 {[%clk 0:01:02]}  Be6 {[%clk 0:00:41]} 21. a3 {[%clk 0:00:41]}  Rxa7 {[%clk 0:00:37]} 22. Bxb4 {[%clk 0:00:37]}  Qd8 {[%clk 0:00:36]} 23. Be2 {[%clk 0:00:13]}  Bxd6 {[%clk 0:00:29]} 24. Qd4 {[%clk 0:00:10]}  Rd7 {[%clk 0:00:26]} 25. Qxg7 {[%clk 0:00:10]}  Rf8 {[%clk 0:00:25]} 26. Bc3 {[%clk 0:00:08]}  Qc7 {[%clk 0:00:20]} 27. Bxa6 {[%clk 0:00:08]}  Qc6 {[%clk 0:00:19]} 28. Bd3 {[%clk 0:00:06]}  Be7 {[%clk 0:00:18]} 29. Re1 {[%clk 0:00:06]}  Kd8 {[%clk 0:00:16]} 30. Bb4 {[%clk 0:00:05]}  Bxb4 {[%clk 0:00:15]} 31. axb4 {[%clk 0:00:05]}  Re8 {[%clk 0:00:15]} 32. b5 {[%clk 0:00:04]}  Qd6 {[%clk 0:00:14]} 33. Qf6+ {[%clk 0:00:03]}  Kc8 {[%clk 0:00:13]} 34. Qc3+ {[%clk 0:00:03]}  Kb8 {[%clk 0:00:12]} 35. Re4 {[%clk 0:00:02]}  Rc8 {[%clk 0:00:12]} 36. Qa5 {[%clk 0:00:02]}  Ra7 {[%clk 0:00:11]} 37. Qd2 {[%clk 0:00:01]}  Qd5 {[%clk 0:00:09]} 38. Kc1 {[%clk 0:00:01]}  Ra1# {[%clk 0:00:09]} 0-1


[Site "https://www.chess.com"]